bitfinex/quotes_ETHUSD_20260108
["timestamp","ask_amount","ask_price","bid_price","bid_amount"]
[1767837629333,2.15615782,3175.3,3174.4,0.827]
[1767837629534,2.15615782,3175.2,3174.4,0.827]
[1767837631410,2.15615782,3175.2,3174.5,0.001]
[1767837631609,2.15815782,3175.0,3174.5,0.001]
[1767837633346,1.96260962,3175.3,3174.6,1.96964307]
[1767837633518,1.96060962,3175.6,3175.0,3.14960629]
[1767837633722,0.002,3175.7,3175.1,2.48156801]
[1767837634035,0.002,3175.7,3175.2,0.827]
[1767837634340,1.96260962,3176.0,3175.3,1.96964307]
[1767837634642,0.002,3176.0,3175.3,1.96964307]
[1767837636648,0.002,3176.0,3175.5,1.96964307]
[1767837636846,0.002,3176.3,3175.8,1.96964307]
[1767837639467,1.96260962,3176.3,3175.4,1.96964307]
[1767837639650,1.96260962,3176.3,3175.7,0.827]
[1767837640950,1.96060962,3176.2,3175.7,0.827]
[1767837642424,1.96060962,3176.2,3175.7,1.42156521]
[1767837642748,1.96060962,3176.2,3175.7,0.59456521]
[1767837642941,0.002,3176.3,3175.7,0.59456521]
[1767837642942,1.96260962,3176.3,3175.7,2.56420828]
[1767837643449,1.96260962,3176.3,3175.7,0.59456521]
[1767837643652,1.96260962,3176.3,3175.6,0.826]
[1767837643824,1.96260962,3176.3,3175.6,0.827]
[1767837644227,0.002,3176.0,3175.6,0.827]
[1767837644750,1.96260962,3176.0,3175.6,0.827]
[1767837645950,1.96260962,3176.0,3175.6,0.001]
[1767837648942,0.002,3176.0,3175.6,0.001]
[1767837649146,0.002,3176.0,3175.6,0.910495]
[1767837649349,0.002,3176.0,3175.6,6.02911572]
[1767837649655,0.002,3176.0,3175.7,1.96964307]
[1767837650554,0.002,3176.3,3175.8,1.96964307]
[1767837654561,0.002,3176.3,3175.6,6.02910414]
[1767837654762,0.002,3176.3,3175.7,1.00041999]
[1767837655135,0.002,3176.3,3175.7,2.97006306]
[1767837655748,0.002,3176.3,3176.0,0.001]
[1767837658633,1.96060962,3176.2,3176.0,0.001]
[1767837662769,0.002,3176.3,3176.0,0.001]
[1767837663565,0.002,3176.6,3176.1,2.06983528]
[1767837667857,0.002,3176.3,3176.1,2.06983528]
[1767837670070,2.01712856,3176.3,3176.0,0.001]
[1767837670251,2.01712856,3176.3,3175.1,2.06983528]
[1767837670456,2.01712856,3176.3,3174.7,3.14986929]
[1767837670753,2.01512856,3176.1,3174.7,3.97586929]
[1767837670943,2.01512856,3176.1,3174.8,5.21963063]
[1767837671354,2.01512856,3176.1,3174.8,2.06983528]
[1767837671865,2.01512856,3176.1,3174.6,2.06983528]
[1767837672067,6.2972292,3176.0,3174.7,0.826]
[1767837672274,2.01512856,3175.8,3174.7,0.826]
[1767837672950,2.01512856,3175.8,3174.7,3.975867]
[1767837673155,2.01512856,3175.8,3174.7,6.04570228]
[1767837674469,1.14609108,3175.9,3174.6,3.97592274]
[1767837674470,2.01512856,3175.6,3174.6,3.97592274]
[1767837674673,2.01512856,3175.6,3174.6,0.826]
[1767837674972,2.01512856,3175.4,3174.5,0.001]
[1767837675558,2.01512856,3175.4,3174.5,3.15108449]
[1767837677972,2.01512856,3175.3,3174.5,0.001]
[1767837680185,2.01512856,3175.3,3174.8,0.001]
[1767837680483,2.01512856,3175.2,3174.5,0.001]
[1767837681685,2.01512856,3175.2,3174.5,2.07083528]
[1767837682184,2.01512856,3175.2,3174.6,3.15000315]
[1767837682567,2.01512856,3175.2,3174.6,5.21983843]
[1767837682884,2.01512856,3175.7,3174.7,2.06983528]
[1767837683049,2.01512856,3175.7,3174.9,2.06983528]
[1767837683249,2.01512856,3175.9,3174.9,2.06983528]
[1767837683573,2.01512856,3175.9,3174.9,2.35951881]
[1767837685394,2.01512856,3175.7,3174.9,2.35951881]
[1767837685792,2.01512856,3175.7,3175.0,2.06983528]
[1767837690096,2.01512856,3175.7,3175.0,5.21941875]
[1767837690461,2.01512856,3175.9,3175.1,2.06983528]
[1767837690661,2.01512856,3175.9,3175.2,0.52194188]
[1767837692077,2.01512856,3175.9,3175.2,3.67129828]
[1767837692284,0.002,3175.4,3175.2,0.52194188]
[1767837692674,1.9962734,3175.7,3175.2,0.52194188]
[1767837693782,1.9962734,3175.7,3174.8,0.001]
[1767837693783,1.9942734,3174.4,3171.9,0.1643933]
[1767837693996,0.82835078,3171.5,3170.0,9.46372239]
[1767837694166,1.9942734,3172.3,3170.2,0.62320993]
[1767837694500,1.9942734,3172.5,3170.5,0.71780538]
[1767837694665,2.8212734,3172.5,3170.7,0.62429314]
[1767837694866,2.8212734,3172.5,3170.9,0.62429314]
[1767837695078,1.9942734,3172.5,3171.1,0.62429314]
[1767837695309,1.9942734,3172.5,3171.3,0.62429314]
[1767837695466,1.9942734,3172.5,3171.4,0.03153181]
[1767837695876,3.15014011,3174.5,3172.2,2.05811639]
[1767837696078,3.15014011,3174.5,3172.4,5.21026325]
[1767837696079,1.9942734,3173.9,3172.4,5.21026325]
[1767837696295,1.9942734,3173.9,3172.5,0.52417861]
[1767837696296,2.27640074,3173.9,3172.5,0.52417861]
[1767837696607,2.27640074,3173.9,3172.3,3.15221437]
[1767837696978,1.9942734,3173.7,3172.1,5.21059728]
[1767837697316,1.9942734,3173.7,3172.2,3.15238024]
[1767837697809,1.9942734,3173.7,3172.3,3.1522812]
[1767837698186,1.9942734,3173.5,3172.1,3.1524176]
[1767837698396,1.9942734,3173.3,3172.2,0.31524176]
[1767837699107,1.9942734,3173.3,3172.3,0.03152286]
[1767837699310,0.827,3173.2,3172.3,2.08963925]
[1767837699473,2.8212734,3173.2,3172.3,0.03152286]
[1767837699807,2.8212734,3173.2,3172.2,0.31524176]
[1767837699808,1.9942734,3173.1,3172.2,0.31524176]
[1767837700476,1.9942734,3173.1,3172.3,0.34676367]
[1767837700680,0.827,3173.0,3172.3,0.34676367]
[1767837700989,0.827,3173.0,3171.9,2.05811639]
[1767837701185,2.8212734,3173.0,3172.1,3.15246166]
[1767837701399,1.9942734,3172.9,3172.1,3.15246166]
[1767837701709,1.9942734,3172.9,3171.9,5.21076499]
[1767837701909,1.9942734,3172.9,3172.0,0.5210765]
[1767837702620,1.9942734,3172.7,3171.7,5.21093264]
[1767837702922,1.9942734,3172.7,3171.7,2.05811639]
[1767837704314,0.827,3172.6,3172.1,2.05811639]
[1767837704493,0.827,3172.7,3172.1,5.2105998]
[1767837704681,0.827,3172.7,3172.2,0.52105998]
[1767837705483,0.827,3172.8,3172.2,0.52105998]
[1767837706522,3.15165986,3173.0,3172.2,0.52105998]
[1767837706710,0.16447114,3175.6,3175.0,0.09459545]
[1767837706913,0.002,3176.3,3175.6,0.07241699]
[1767837707220,0.002,3176.6,3176.0,0.09459545]
[1767837707519,0.002,3177.0,3176.2,2.05811639]
[1767837707724,0.002,3177.0,3176.3,2.36274832]
[1767837707895,0.002,3177.0,3176.3,0.827]
[1767837708094,0.002,3177.0,3176.4,0.827]
[1767837708488,0.002,3177.0,3176.5,3.14811899]
[1767837708690,0.002,3177.0,3176.6,0.827]
[1767837709300,0.002,3177.6,3176.6,2.88511639]
[1767837709506,0.002,3177.6,3176.7,0.28851164]
[1767837709791,0.002,3177.6,3176.7,2.34662803]
[1767837710391,0.002,3177.9,3176.7,2.34662803]
[1767837710592,0.002,3177.9,3176.9,2.05811639]
[1767837711017,0.002,3178.2,3176.9,2.05811639]
[1767837711222,0.002,3178.2,3177.0,3.52305671]
[1767837711393,0.002,3178.2,3177.1,0.827]
[1767837712529,0.002,3178.2,3177.0,3.52305671]
[1767837712727,1.9962734,3178.2,3176.2,2.05811639]
[1767837712899,1.9962734,3178.2,3176.9,3.14771263]
[1767837713232,1.9962734,3178.2,3177.0,0.827]
[1767837713527,1.9962734,3178.2,3177.1,0.827]
[1767837713822,1.9962734,3178.2,3177.2,0.827]
[1767837714023,1.9942734,3178.0,3177.2,0.827]
[1767837715339,1.9942734,3178.0,3176.4,6.2964362]
[1767837715624,1.9942734,3177.9,3176.5,0.826]
[1767837716627,5.14110454,3177.8,3177.2,0.001]
[1767837716821,1.9942734,3177.8,3177.3,0.826]
[1767837717127,0.51411045,3177.7,3177.3,0.826]
[1767837717425,1.9942734,3177.6,3177.2,0.001]
[1767837717602,1.9942734,3177.6,3177.1,0.826]
[1767837718234,1.9942734,3177.6,3176.7,0.826]
[1767837718436,1.9942734,3177.4,3176.7,0.826]
[1767837720423,1.9942734,3177.3,3176.7,0.826]
[1767837721329,1.9942734,3177.3,3176.2,0.03148416]
[1767837721523,1.9942734,3177.2,3176.3,0.826]
[1767837722105,1.9942734,3177.2,3176.4,3.14814299]
[1767837722299,0.19942734,3177.1,3176.4,3.14814299]
[1767837722901,2.28711581,3177.1,3176.0,6.2972292]
[1767837723135,2.28711581,3177.1,3176.1,0.85748515]
[1767837723306,2.28711581,3177.1,3176.2,0.826]
[1767837723506,0.19942734,3177.1,3176.2,0.826]
[1767837723831,2.08768847,3177.3,3176.2,0.826]
[1767837726007,2.08768847,3177.2,3176.3,3.14831722]
[1767837726409,2.08768847,3177.2,3176.3,6.29663444]
[1767837726829,2.08768847,3177.2,3176.3,3.14831722]
[1767837727041,2.07290147,3177.2,3176.3,3.14831722]
[1767837727338,2.29497862,3177.1,3176.4,0.826]
[1767837727904,2.29497862,3177.1,3176.5,0.001]
[1767837730043,2.29497862,3177.1,3176.5,0.827]
[1767837730211,2.29497862,3177.1,3176.5,0.001]
[1767837730406,2.29497862,3177.1,3176.5,0.827]
[1767837730647,0.22949786,3177.0,3176.5,0.827]
[1767837730810,2.31718633,3177.0,3176.5,0.001]
[1767837731013,2.31718633,3177.0,3175.9,0.826]
[1767837731834,2.31718633,3177.0,3175.8,3.14876892]
[1767837732022,2.08768847,3176.8,3175.9,0.826]
[1767837732545,2.08768847,3176.8,3175.9,3.97466749]
[1767837732840,3.14783781,3176.8,3175.9,3.97466749]
[1767837733044,2.08768847,3176.7,3175.9,3.97466749]
[1767837733220,2.08768847,3176.7,3174.7,2.07512822]
[1767837733413,2.08768847,3176.5,3175.1,3.14942094]
[1767837733613,2.08768847,3176.5,3175.1,3.14949626]
[1767837733827,2.08768847,3176.5,3175.2,3.97534865]
[1767837734022,2.08768847,3176.5,3175.3,3.1493083]
[1767837734248,2.08768847,3176.3,3175.3,3.1493083]
[1767837734440,2.08768847,3176.2,3175.3,3.1493083]
[1767837736443,2.08768847,3176.2,3175.3,3.9753083]
[1767837736829,2.08768847,3176.1,3175.3,3.9753083]
[1767837737547,2.08768847,3176.1,3175.3,7.12461702]
[1767837737716,2.29645732,3176.1,3175.3,7.12461702]
[1767837740138,2.29645732,3176.1,3175.6,0.001]
[1767837740948,2.34881258,3176.4,3175.6,0.001]
[1767837741253,0.26112411,3176.4,3175.6,2.10761833]
[1767837741453,0.26112411,3176.4,3175.6,2.07612822]
[1767837742224,0.26112411,3176.4,3175.7,2.10661734]
[1767837742433,0.26112411,3176.4,3175.8,0.826]
[1767837742755,0.26112411,3176.4,3175.9,0.03148713]
[1767837743257,2.08768847,3176.6,3175.9,3.18014166]
[1767837743454,2.08768847,3176.6,3175.9,3.14865453]
[1767837743756,2.08768847,3176.6,3175.8,3.9747747]
[1767837745424,2.08768847,3176.6,3175.8,6.04990292]
[1767837749561,2.08768847,3176.6,3175.9,2.07512822]
[1767837749732,2.08768847,3176.9,3176.0,2.10661436]
[1767837750163,2.08768847,3177.4,3176.0,2.07512822]
[1767837750935,2.08768847,3177.4,3175.9,0.95135772]
[1767837750936,2.08768847,3177.4,3176.2,2.07512822]
[1767837751134,2.08768847,3177.4,3176.3,0.826]
[1767837751359,2.08768847,3177.2,3176.2,2.07512822]
[1767837751548,2.08768847,3177.2,3176.1,0.03148515]
[1767837751549,2.08768847,3177.0,3176.3,3.97431651]
[1767837751744,2.08768847,3177.0,3176.4,3.14820605]
[1767837751976,2.08768847,3177.0,3176.5,0.826]
[1767837752334,2.05116166,3177.5,3176.5,0.826]
[1767837752670,2.05116166,3177.3,3176.5,0.826]
[1767837753667,2.05116166,3177.3,3176.5,3.97408505]
[1767837754162,2.05116166,3177.3,3176.5,3.14808505]
[1767837754465,0.51981909,3177.4,3176.6,0.826]
[1767837754466,2.05116166,3177.2,3176.6,0.826]
[1767837754833,2.05116166,3177.2,3176.4,3.14817722]
[1767837755039,2.05116166,3177.0,3176.5,0.826]
[1767837756367,2.05116166,3177.0,3176.3,3.14827183]
[1767837756549,2.05116166,3177.0,3176.4,0.826]
[1767837756751,2.05116166,3177.0,3176.2,3.148371]
[1767837756961,2.05116166,3177.0,3176.3,3.97430913]
[1767837757161,2.05116166,3176.9,3176.3,3.97430913]
[1767837759254,2.05116166,3176.9,3175.8,2.10015955]
[1767837759593,2.05116166,3176.8,3176.3,0.826]
[1767837759742,2.05116166,3176.8,3176.3,3.97430761]
[1767837760340,2.05116166,3176.8,3176.3,0.826]
[1767837762176,2.05116166,3176.8,3176.2,3.148362]
[1767837762358,2.05116166,3176.8,3176.2,3.974362]
[1767837762876,2.05116166,3176.8,3176.2,0.826]
[1767837763076,2.05116166,3176.8,3176.2,3.9744133]
[1767837763575,2.05116166,3176.8,3176.2,0.826]
[1767837763742,2.05116166,3176.8,3175.9,3.14968777]
[1767837763743,2.05116166,3176.7,3175.9,0.001]
[1767837764178,2.05316166,3176.7,3175.9,0.001]
[1767837764878,5.19918155,3176.6,3175.9,0.001]
[1767837765066,5.19918155,3176.6,3175.9,2.10115955]
[1767837765743,8.34720144,3176.6,3175.9,2.10115955]
[1767837765946,2.05116166,3176.4,3175.9,0.001]
[1767837767118,2.05116166,3176.3,3175.9,0.001]
[1767837768146,2.05116166,3176.3,3175.6,0.001]
[1767837768368,2.05116166,3176.1,3174.9,2.10015955]
[1767837769070,2.05116166,3175.9,3174.9,2.10015955]
[1767837769580,2.05116166,3175.7,3174.9,2.10015955]
[1767837769780,2.05116166,3175.7,3175.0,2.10015955]
[1767837769991,0.83483909,3175.8,3175.0,2.10015955]
[1767837770850,2.88600075,3175.8,3175.0,2.10015955]
[1767837772067,6.03482912,3175.8,3175.0,2.10015955]
[1767837772265,0.60348291,3175.7,3175.0,2.10015955]
[1767837773250,0.60348291,3175.7,3175.1,2.10015955]
[1767837773455,2.05116166,3175.8,3175.1,2.10015955]
[1767837774358,2.05116166,3176.0,3175.2,2.10015955]
[1767837774760,6.2964362,3176.4,3175.2,2.13165362]
[1767837774761,2.05116166,3176.3,3175.2,2.13165362]
[1767837775961,2.05116166,3176.3,3175.2,2.10015955]
[1767837776291,2.05116166,3176.3,3175.3,0.001]
[1767837776476,0.002,3175.7,3175.3,0.001]
[1767837779490,2.05316166,3175.7,3175.3,0.001]
[1767837782492,0.002,3175.7,3175.3,0.001]
[1767837789478,0.002,3175.7,3175.3,2.12481313]
[1767837791967,2.11632068,3175.7,3175.3,0.001]
[1767837792167,0.002,3175.7,3175.3,2.12481313]
[1767837794196,0.52850628,3175.7,3175.3,2.12481313]
[1767837794499,0.52850628,3175.7,3175.3,0.001]
[1767837796595,5.79174205,3175.7,3175.3,0.001]
[1767837796772,2.64282696,3175.7,3175.3,0.001]
[1767837797499,2.11432068,3175.7,3175.3,0.001]
[1767837798897,2.11432068,3175.6,3175.3,0.001]
[1767837799497,2.11432068,3175.6,3174.7,3.14986087]
[1767837799699,2.11432068,3175.6,3174.9,0.826]
[1767837800299,2.11432068,3175.9,3175.0,2.12381313]
[1767837800474,2.11432068,3175.9,3174.9,7.125411]
[1767837800475,2.11432068,3175.9,3175.2,2.12381313]
[1767837801303,2.11432068,3175.9,3175.3,2.12381313]
[1767837802800,0.002,3176.0,3175.3,2.12381313]
[1767837803688,0.002,3176.0,3175.4,2.12381313]
[1767837805572,2.11632068,3176.0,3175.4,2.12381313]
[1767837806494,2.11632068,3176.0,3175.3,2.12381313]
[1767837807000,2.11009368,3176.0,3175.3,2.12381313]
[1767837807207,2.11009368,3176.0,3175.3,5.27308728]
[1767837807505,2.11009368,3176.0,3175.3,6.20783835]
[1767837808387,2.11009368,3176.0,3175.3,3.0585642]
[1767837808908,2.11009368,3176.0,3175.3,6.20786152]
[1767837809204,2.11009368,3176.0,3175.3,3.0585642]
[1767837809589,2.11009368,3176.0,3175.3,6.20785567]
[1767837810810,2.11009368,3176.0,3175.3,3.0585642]
[1767837811813,0.002,3175.7,3175.3,0.93475107]
[1767837811975,2.11632068,3175.7,3174.5,5.16140571]
[1767837812181,2.11632068,3175.7,3174.5,2.01135035]
[1767837812503,2.11632068,3175.7,3174.5,2.83735035]
[1767837813010,2.1367789,3175.5,3174.5,5.98743941]
[1767837813207,2.1367789,3175.5,3174.5,6.90121263]
[1767837813411,2.1367789,3175.5,3174.5,10.051315]
[1767837813809,2.1367789,3175.5,3174.5,6.90121263]
[1767837814717,2.1367789,3175.5,3174.5,10.051315]
[1767837815008,2.1367789,3175.3,3174.5,6.07521263]
[1767837815208,2.1367789,3175.3,3174.5,4.88986228]
[1767837816084,2.1367789,3175.3,3174.5,0.91377322]
[1767837816379,2.1367789,3175.3,3174.5,4.06387455]
[1767837818612,2.1367789,3175.2,3174.5,0.91377322]
[1767837819112,2.1367789,3175.2,3174.5,4.0638715]
[1767837819413,2.1367789,3175.2,3174.5,1.74077322]
[1767837819890,2.1367789,3175.2,3174.5,0.827]
[1767837820290,2.1367789,3175.1,3174.4,5.16152276]
[1767837820502,2.1367789,3175.1,3174.4,3.15017241]
[1767837820884,2.1367789,3175.1,3174.1,5.16177484]
[1767837821093,2.35045679,3175.1,3174.1,1.65824017]
[1767837821293,2.35045679,3175.1,3174.1,0.827]
[1767837821495,2.35045679,3175.1,3174.1,3.97749838]
[1767837822119,2.35045679,3175.1,3174.2,3.15034712]
[1767837822718,2.1367789,3175.0,3174.2,3.15034712]
[1767837823119,2.1367789,3175.0,3174.1,5.98881692]
[1767837823727,2.1367789,3175.0,3174.1,5.16181692]
[1767837824022,2.1367789,3174.9,3174.8,0.001]
[1767837824220,2.1367789,3174.9,3174.1,5.16181692]
[1767837825593,2.1367789,3174.9,3172.1,14.59459545]
[1767837825594,2.1367789,3174.9,3173.5,2.01135035]
[1767837825918,2.1367789,3174.9,3173.7,3.15086598]
[1767837825919,2.1367789,3174.8,3173.7,3.15086598]
[1767837826124,2.35045679,3174.8,3173.8,3.15074272]
[1767837826497,2.35045679,3174.8,3173.7,3.1508578]
[1767837827223,2.35045679,3174.8,3173.6,3.97796617]
[1767837827928,2.1367789,3174.6,3173.6,3.15096617]
[1767837828098,2.1367789,3174.5,3173.6,4.06500683]
[1767837828998,2.1367789,3174.4,3173.6,4.06500683]
[1767837829622,2.1367789,3174.4,3173.6,0.91404066]
[1767837829813,2.1367789,3174.4,3173.5,3.97805699]
[1767837830227,2.1367789,3174.4,3173.5,0.827]
[1767837830502,2.1367789,3174.4,3173.5,3.97803509]
[1767837830702,2.1367789,3174.4,3173.5,0.827]
[1767837831002,2.1367789,3174.4,3172.8,4.6973264]
[1767837831003,2.1367789,3174.2,3172.7,8.31512945]
[1767837831331,2.1367789,3174.2,3172.8,1.97370546]
[1767837831729,2.1367789,3174.2,3172.8,1.14670546]
[1767837831929,2.1367789,3174.2,3172.9,0.827]
[1767837832228,2.1367789,3174.2,3172.9,2.83835035]
[1767837832426,2.1367789,3174.2,3173.0,2.01135035]
[1767837832728,2.1367789,3174.0,3173.0,2.83835035]
[1767837832933,2.1367789,3174.0,3173.1,2.01135035]
[1767837833102,2.1367789,3173.8,3173.1,2.01135035]
[1767837833803,2.1367789,3173.8,3173.2,2.01135035]
[1767837834113,2.1367789,3173.8,3173.0,2.01135035]
[1767837834334,2.66552658,3173.8,3173.0,2.01135035]
[1767837834506,2.66552658,3173.8,3172.8,2.83835035]
[1767837834705,2.66552658,3173.8,3172.8,2.01135035]
[1767837835033,2.1367789,3173.6,3172.8,2.01135035]
[1767837835237,2.1367789,3173.4,3172.8,2.01135035]
[1767837835436,2.1367789,3173.4,3172.6,2.01135035]
[1767837836029,2.1367789,3173.4,3173.0,0.001]
[1767837836545,2.1367789,3173.2,3172.2,2.01135035]
[1767837836726,4.6973264,3173.3,3172.2,2.01135035]
[1767837836727,2.1367789,3173.0,3172.2,2.01135035]
[1767837837240,2.1367789,3172.9,3172.2,2.01135035]
[1767837837451,2.1367789,3172.9,3172.0,2.01135035]
[1767837838123,2.1367789,3172.9,3172.0,5.16389843]
[1767837838324,2.1367789,3172.8,3172.1,3.15248303]
[1767837838734,2.1367789,3172.8,3172.0,3.15255905]
[1767837839642,2.1367789,3172.8,3171.9,3.15268451]
[1767837839811,2.1367789,3172.7,3171.9,2.01135035]
[1767837840011,2.1367789,3172.6,3171.9,2.01135035]
[1767837840735,0.62009473,3172.7,3171.9,2.01135035]
[1767837840936,2.1367789,3172.9,3171.9,2.01135035]
[1767837841135,3.15165713,3173.0,3171.9,2.01135035]
[1767837841310,5.28843603,3173.0,3171.9,2.01135035]
[1767837841508,8.44010435,3173.0,3172.0,2.01135035]
[1767837841710,5.28843603,3173.0,3172.0,2.01135035]
[1767837841910,3.04911332,3172.9,3172.0,2.01135035]
[1767837842112,2.03993931,3172.8,3172.0,2.01135035]
[1767837844613,2.03993931,3172.8,3172.1,2.04029144]
[1767837847946,2.03993931,3172.8,3172.1,5.19275616]
[1767837848131,2.03993931,3172.8,3172.4,0.001]
[1767837848330,2.55909442,3172.8,3172.4,0.001]
[1767837849242,5.19173017,3172.8,3172.4,0.001]
[1767837849421,2.03993931,3172.8,3172.4,0.001]
[1767837849853,5.19173171,3172.8,3172.4,0.001]
[1767837850850,2.03993931,3172.8,3172.4,0.001]
[1767837852162,5.19174522,3172.8,3172.4,0.001]
[1767837852355,1.98499134,3172.7,3172.4,0.001]
[1767837852653,1.98499134,3172.7,3171.8,2.15547392]
[1767837852821,1.98499134,3172.6,3171.8,2.15547392]
[1767837853479,5.97113094,3172.8,3172.0,2.15547392]
[1767837853761,0.60332579,3172.7,3172.0,2.15547392]
[1767837853959,3.97861378,3173.0,3172.2,2.15547392]
[1767837853960,1.98499134,3173.0,3172.2,2.15547392]
[1767837854168,1.98499134,3173.0,3172.1,3.18396528]
[1767837854169,1.98499134,3173.0,3172.1,3.97944043]
[1767837854559,1.98499134,3172.9,3172.1,3.97944043]
[1767837854745,1.98499134,3172.8,3172.1,0.827]
[1767837855538,1.98499134,3172.8,3172.0,3.97954524]
[1767837855738,1.98499134,3172.8,3172.1,3.15247851]
[1767837856151,1.98499134,3172.8,3171.7,2.15647392]
[1767837856665,1.98499134,3172.6,3171.8,3.1527247]
[1767837856837,1.98499134,3172.6,3171.8,6.2371082]
[1767837857033,1.98499134,3172.6,3171.8,3.0843835]
[1767837857438,1.98499134,3172.6,3171.9,2.15547392]
[1767837859466,5.13707959,3172.5,3171.9,2.15547392]
[1767837859670,1.98499134,3172.5,3171.9,2.15547392]
[1767837859838,1.98499134,3172.5,3172.1,0.001]
[1767837860165,1.98499134,3172.4,3172.1,0.001]
[1767837860369,1.98499134,3172.4,3171.7,0.001]
[1767837860984,1.98499134,3172.4,3171.3,2.15547392]
[1767837861187,1.98499134,3172.4,3171.1,6.13591404]
[1767837861775,1.98499134,3172.2,3171.2,3.15337799]
[1767837862084,3.6657948,3172.5,3171.3,2.15547392]
[1767837862289,6.81788825,3172.5,3171.3,2.15547392]
[1767837862593,8.80287959,3172.5,3171.3,2.15547392]
[1767837862889,1.98499134,3172.4,3171.3,2.15547392]
[1767837863186,1.98499134,3172.4,3171.5,2.15547392]
[1767837863389,1.98499134,3172.4,3171.5,2.37417449]
[1767837863898,1.98499134,3172.4,3171.3,2.15547392]
[1767837864359,1.98499134,3172.2,3171.2,3.15333447]
[1767837864558,1.98499134,3172.2,3171.3,3.15324366]
[1767837865386,1.98499134,3172.2,3171.2,3.15334492]
[1767837865886,1.98499134,3172.2,3171.3,3.15325453]
[1767837866092,1.98499134,3172.2,3171.3,4.0197915]
[1767837866291,1.98499134,3172.1,3171.3,0.86653697]
[1767837866592,1.98499134,3172.1,3171.3,4.01981104]
[1767837867290,1.98499134,3172.1,3171.3,0.86653697]
[1767837867882,1.98499134,3172.1,3171.2,3.15332281]
[1767837868086,1.98499134,3172.1,3171.1,2.15547392]
[1767837868274,1.98499134,3172.1,3171.2,3.15335496]
[1767837868473,1.98499134,3172.0,3171.2,3.15335496]
[1767837869664,1.98499134,3172.0,3171.2,5.30882888]
[1767837869864,1.98499134,3171.9,3171.1,3.15345785]
[1767837870095,1.98499134,3171.9,3171.1,5.30893177]
[1767837870294,1.98499134,3171.9,3170.9,5.30911524]
[1767837870499,1.98499134,3171.7,3170.9,0.84628783]
[1767837870704,1.98499134,3171.7,3170.8,5.30922943]
[1767837871697,1.98499134,3171.7,3171.5,0.001]
[1767837871871,1.98499134,3171.7,3170.8,5.30920459]
[1767837872070,1.98499134,3171.7,3170.9,3.15366961]
[1767837872270,1.97273789,3171.6,3170.8,5.30921113]
[1767837872496,1.97273789,3171.5,3170.8,5.30921113]
[1767837872684,1.97273789,3171.5,3170.7,3.15387046]
[1767837872884,1.97273789,3171.5,3170.6,5.2836185]
[1767837873278,1.97273789,3171.5,3170.6,3.15391149]
[1767837873590,1.97273789,3171.3,3170.5,3.15404068]
[1767837873901,1.97273789,3171.3,3169.9,2.12970701]
[1767837874090,1.97273789,3171.3,3170.0,2.12970701]
[1767837874276,1.97273789,3171.1,3170.0,2.12970701]
[1767837874470,1.97273789,3170.7,3170.0,2.12970701]
[1767837874675,1.97273789,3170.6,3169.6,2.12970701]
[1767837874899,1.97273789,3170.6,3169.8,2.12970701]
[1767837875099,2.79973789,3170.8,3170.0,5.28419831]
[1767837875301,0.827,3170.8,3170.1,2.12970701]
[1767837875598,0.827,3170.8,3170.1,2.16125175]
[1767837875802,2.79973789,3170.8,3170.1,2.16125175]
[1767837876007,0.827,3170.8,3170.2,2.16125076]
[1767837876201,1.97273789,3171.2,3170.2,2.16125076]
[1767837876505,1.33957233,3171.4,3170.5,2.12970701]
[1767837876709,2.48531022,3171.4,3170.5,2.12970701]
[1767837877076,1.97273789,3171.3,3170.5,2.12970701]
[1767837877303,1.97273789,3171.3,3170.6,2.16124678]
[1767837877699,1.97273789,3171.3,3170.6,2.12970701]
[1767837878605,0.51257233,3171.4,3170.7,3.18541646]
[1767837878901,2.80073789,3171.5,3170.7,3.18541646]
[1767837879098,2.80073789,3171.5,3170.8,2.12970701]
[1767837879302,2.80073789,3171.5,3170.7,3.18541646]
[1767837879303,0.828,3171.5,3171.0,2.12970701]
[1767837879502,1.97273789,3171.7,3171.0,2.12970701]
[1767837879733,1.97273789,3171.6,3171.0,2.12970701]
[1767837879912,1.97273789,3171.6,3170.8,2.12970701]
[1767837881295,1.97273789,3171.6,3170.9,3.15367876]
[1767837881498,1.97273789,3171.6,3170.8,5.28345332]
[1767837882108,2.25281168,3171.6,3170.8,5.28345332]
[1767837883008,2.25281168,3171.6,3170.9,2.12970701]
[1767837884316,2.25281168,3171.6,3170.9,5.28332839]
[1767837884518,1.97273789,3171.6,3171.0,2.12970701]
[1767837885216,1.97273789,3172.0,3171.0,2.12970701]
[1767837885415,0.002,3172.1,3171.4,2.12970701]
[1767837885829,1.97473789,3172.1,3171.4,2.12970701]
[1767837886618,1.97473789,3172.1,3171.4,5.2828709]
[1767837887017,2.3,3171.8,3171.4,5.2828709]
[1767837887250,2.3,3171.8,3171.4,6.12649462]
[1767837887723,1.97473789,3172.1,3171.6,2.12970701]
[1767837887724,0.002,3172.1,3171.6,2.12970701]
[1767837888510,2.80273789,3172.4,3171.7,5.28259032]
[1767837888697,2.80273789,3172.4,3171.8,0.52825903]
[1767837890327,0.83,3172.4,3171.8,2.65796604]
[1767837890529,0.002,3172.4,3171.9,3.15268451]
[1767837890721,0.002,3172.4,3172.0,2.12970701]
[1767837891428,1.97273789,3172.8,3172.1,2.12970701]
[1767837891731,1.97273789,3172.8,3172.2,2.12970701]
[1767837892724,1.97273789,3172.8,3171.9,6.30536902]
[1767837892725,1.97273789,3172.8,3172.0,2.12970701]
[1767837894534,0.828,3172.9,3172.0,2.12970701]
[1767837894746,0.828,3172.9,3172.2,2.12970701]
[1767837895326,1.97273789,3173.2,3172.2,2.12970701]
[1767837895637,1.97273789,3173.2,3172.4,2.12970701]
[1767837895939,0.827,3173.3,3172.4,2.12970701]
[1767837896936,1.97273789,3173.2,3172.3,0.001]
[1767837897115,1.97473789,3172.9,3172.4,3.1521824]
[1767837899232,1.97473789,3172.9,3172.3,3.15328509]
[1767837899633,1.97473789,3172.9,3172.3,6.30557207]
[1767837901748,1.97473789,3172.9,3172.3,3.15328509]
[1767837902351,1.97473789,3172.9,3172.3,6.30557207]
[1767837902821,0.002,3172.9,3172.4,1.93514221]
[1767837903017,2.87228138,3173.3,3172.6,1.93514221]
[1767837903224,2.04528138,3173.3,3172.6,1.93514221]
[1767837903732,2.04528138,3173.3,3172.3,10.30138696]
[1767837904029,2.04528138,3173.3,3172.3,7.14909998]
[1767837904219,2.04528138,3173.3,3172.4,1.22365923]
[1767837904551,2.04528138,3173.3,3172.4,3.15880144]
[1767837906154,2.04528138,3173.3,3172.5,6.3041765]
[1767837906457,2.04528138,3173.3,3172.6,1.96666209]